Cogmind - Beta 14 --- EXPLORER MODE // 2024.11.16 @ 23:04:02 Player: viper Result: Self-destructed Performance ------------- Evolutions (8) 4000 Regions Visited (14) 2800 Robots Destroyed (370) 1850 Value Destroyed (16307) 16307 Prototype IDs (26) 520 Alien Tech Used (0) 0 Bonus (2606) 2606 TOTAL SCORE: 28083 Bonus ------- High Alert Combat Kills 1283 Follower Combat Kills 911 Entered Garrisons 200 Used RIF Installer 500 Scanned by Researcher 500 Friendly Fire -788 Cogmind --------- Core Integrity 810/1450 Matter 212/300 Energy 150/150 System Corruption 7% Temperature Cool (48) Movement Core (1550) Ox30 Location -2/Testing Parts ------- > --- POWER (4) -------- Micro Antimatter Reactor > --- PROPULSION (4) --- (None) > --- UTILITY (9) ------ Advanced Heat Sink Huge Storage Unit Advanced Target Analyzer Improved Armor Integrity Analyzer Kinecellerator > --- WEAPON (7) ------- (None) > --- INVENTORY (25) --- Light Neutrino Core Micro Fission Core Light Antimatter Reactor Advanced Heat Sink Advanced Heat Sink Improved Energy Well Experimental Energy Well Medium Matter Pod (100) High-capacity Matter Pod (200) High-capacity Matter Pod (159) Machine Analyzer Advanced Targeting Computer Improved Hacking Suite Improved System Guard Advanced Corruption Screen System Restoration Module Nova Cannon Gauss Rifle Peak State ------------ > --- POWER ------------ Light Antimatter Reactor Micro Antimatter Reactor Compact Particle Reactor Quantum Reactor > --- PROPULSION ------- Improved Carbon-fiber Leg Flexi-carbon Leg Flexi-carbon Leg Myomer Leg > --- UTILITY ---------- Improved Heat Sink Improved Heat Sink Advanced Heat Sink Advanced Heat Sink Advanced Heat Sink Huge Storage Unit Advanced Target Analyzer Improved Armor Integrity Analyzer Kinecellerator > --- WEAPON ----------- Potential Cannon Improved Potential Cannon KE Penetrator Railgun Railgun > --- INVENTORY -------- Light Neutrino Core Micro Fission Core Advanced Heat Sink Advanced Heat Sink Improved Energy Well Experimental Energy Well Medium Matter Pod High-capacity Matter Pod High-capacity Matter Pod Machine Analyzer Advanced Targeting Computer Improved Hacking Suite Improved System Guard Advanced Corruption Screen System Restoration Module Warp Gun Nova Cannon Gauss Rifle Heavy Machine Gun [Rating: 169] Favorites ----------- Power Improved Ion Engine Engine Improved Ion Engine Power Core Enhanced Nuclear Core Reactor Light Antimatter Reactor Propulsion Aluminum Leg Leg Aluminum Leg Utility Huge Storage Unit Device Terrain Scanner Storage Huge Storage Unit Processor Improved Targeting Computer Protection Propulsion Shielding Weapon Enhanced Coil Gun Energy Gun Improved Heavy Laser Energy Cannon Improved Potential Cannon Ballistic Gun Enhanced Coil Gun Ballistic Cannon Advanced Assault Cannon Build | -11 -10 -9 -9 -9 -9 -7 -6 -6 -6 -5 -4 -3 -2 -2 ------- Run | Yrd Mat Mat Sto Gar Rec Fac Fac Low Low Fac Fac Res Res Tes Slots Evolved 17 | . 1 2 . . . 4 2 . . 2 2 2 2 . Power 3 | . . 1 . . . 1 . . . . . . 1 . Propulsion 2 | . . 1 . . . 1 . . . . . . . . Utility 7 | . 1 . . . . 1 1 . . 2 2 . . . Weapon 5 | . . . . . . 1 1 . . . . 2 1 . Parts Attached 226 | 6 10 6 12 5 4 38 13 10 . 11 42 14 23 32 Power 53 | 1 2 3 3 1 4 8 1 3 . 2 6 3 8 8 Engine 26 | 1 2 3 3 1 4 5 1 3 . 2 1 . . . Core 9 | . . . . . . 3 . . . . 2 . 2 2 Reactor 18 | . . . . . . . . . . . 3 3 6 6 Propulsion 56 | 2 2 2 3 1 . 14 5 3 . 3 12 2 4 3 Treads . | . . . . . . . . . . . . . . . Leg 56 | 2 2 2 3 1 . 14 5 3 . 3 12 2 4 3 Wheel . | . . . . . . . . . . . . . . . Hover . | . . . . . . . . . . . . . . . Flight . | . . . . . . . . . . . . . . . Utility 54 | 1 5 1 1 . . 3 3 1 . 2 14 7 4 12 Device 32 | . 2 . . . . 1 . . . 2 8 6 2 11 Storage 11 | 1 2 . 1 . . . 1 1 . . 4 . . 1 Processor 8 | . . 1 . . . 2 2 . . . . 1 2 . Hackware . | . . . . . . . . . . . . . . . Protection 3 | . 1 . . . . . . . . . 2 . . . Artifact . | . . . . . . . . . . . . . . . Weapon 63 | 2 1 . 5 3 . 13 4 3 . 4 10 2 7 9 Energy Gun 6 | . . . 2 . . 2 1 . . . . . . 1 Energy Cannon 3 | . . . . . . . . . . . . . . 3 Ballistic Gun 48 | 2 1 . 3 3 . 7 3 3 . 4 9 2 6 5 Ballistic Cannon 6 | . . . . . . 4 . . . . 1 . 1 . Launcher . | . . . . . . . . . . . . . . . Special Weapon . | . . . . . . . . . . . . . . . Impact Weapon . | . . . . . . . . . . . . . . . Slashing Weapon . | . . . . . . . . . . . . . . . Piercing Weapon . | . . . . . . . . . . . . . . . Special Melee Weapon . | . . . . . . . . . . . . . . . Unidentified Prototypes 11 | . . . 1 . . 3 . . . . 2 . 1 4 Parts Lost 82 | . . 1 2 3 . 5 3 3 . 1 15 2 11 36 Power 20 | . . 1 1 2 . 2 1 2 . . 2 . 3 6 Propulsion 15 | . . . . 1 . 2 . . . . 3 . 2 7 Utility 19 | . . . . . . . . . . . 7 2 . 10 Weapon 28 | . . . 1 . . 1 2 1 . 1 3 . 6 13 Highest Loss Streak 17 | . . 1 1 2 . 1 2 2 . 1 3 1 7 17 To Critical Strikes 5 | . . . . . . . . . . . . . . 5 Average Slot Usage (%) 97 | . 99 99 99 97 100 96 99 96 100 97 98 99 97 89 Engine 12 | . 12 19 19 17 20 15 11 13 18 15 4 . . . Core 1 | . . . . . . 2 6 2 . . 5 . 1 3 Reactor 2 | . . . . . . . . . . . 4 12 13 11 Leg 25 | . 24 30 30 29 30 27 25 25 25 21 19 17 15 14 Device 11 | . 11 10 10 10 10 9 6 6 6 15 19 13 12 17 Storage 10 | . 12 10 10 10 10 7 10 12 12 11 14 21 12 9 Processor 9 | . . 7 10 10 10 11 13 12 12 11 7 4 11 8 Protection 1 | . 12 2 . . . . . . . . 2 . . . Energy Gun 3 | . . . . 10 10 1 3 6 6 1 . . . . Ballistic Gun 14 | . 25 20 19 10 10 4 10 15 18 19 17 27 24 15 Ballistic Cannon 4 | . . . . . . 14 9 2 . . 1 . 4 . Peak Build Rating 169 | 6 9 14 21 23 23 49 61 62 62 71 108 136 158 169 Average Rating 50 | 4 8 12 16 21 22 37 56 57 62 68 89 123 146 148 On Entrance 52 | . 6 9 14 21 20 23 46 61 62 62 69 105 136 149 Naked Turns . | . . . . . . . . . . . . . . . Heaviest Build 205 | 16 51 57 100 101 103 129 133 134 132 135 157 169 188 205 Greatest Support 117 | 20 20 30 36 36 33 66 73 73 70 70 99 99 117 112 Greatest Overweight (x) 41 | 1 2 1 2 4 3 7 2 3 1 4 2 1 2 41 Average Overweight (x) 1 | . 1 1 1 2 2 1 1 1 1 1 1 1 1 2 Largest Inventory Capacity 25 | 10 20 20 25 25 25 25 25 25 25 25 25 25 25 25 Average Capacity 24 | 8 18 20 23 25 25 25 25 25 25 25 25 25 25 25 Most Carried 25 | 4 15 18 24 25 25 25 25 25 25 24 25 25 24 23 Average Carried 21 | 2 11 14 19 23 24 23 23 23 25 22 23 24 19 15 Final Capacity 25 | 10 20 20 25 25 25 25 25 25 25 25 25 25 25 25 Final Carried 25 | 4 15 18 24 24 25 25 23 25 25 23 25 25 19 18 Class Distribution -------------------- 24% | Hacker-Mutant 17% | Hacker-Skirmisher 14% | Scavenger-Gunner 12% | Scavenger-Executioner 10% | Scavenger-Mutant 7% | Hacker-Gunner 7% | Commander-Mutant 6% | Scavenger-Skirmisher Dominant Class ---------------- Hacker-Mutant | -10/Materials Hacker-Mutant | -9/Materials Commander-Mutant | -9/Storage Hacker-Mutant | -9/Garrison Scavenger-Mutant | -9/Recycling Hacker-Skirmisher | -7/Factory Hacker-Gunner | -6/Factory Hacker-Gunner | -6/Lower Caves Scavenger-Gunner | -6/Lower Caves Scavenger-Gunner | -5/Factory Scavenger-Gunner | -4/Factory Scavenger-Executioner | -3/Research Scavenger-Executioner | -2/Research Scavenger-Executioner | -2/Testing Resources | -11 -10 -9 -9 -9 -9 -7 -6 -6 -6 -5 -4 -3 -2 -2 ----------- Run | Yrd Mat Mat Sto Gar Rec Fac Fac Low Low Fac Fac Res Res Tes Matter Collected 11751 | 260 441 337 849 298 84 1525 997 732 . 269 2308 961 1560 1130 Remotely 843 | . . . . . . . . . . . 843 . . . Salvage Created 18439 | . 603 253 1069 761 506 1279 1070 777 . 338 5223 2315 2110 2135 Parts 853 | . 37 21 57 51 23 58 41 36 . 13 226 111 95 84 Haulers Intercepted 12 | . 1 . 4 . . 1 . . . 1 2 3 . . Recyclers Shooed 15 | . 1 . 2 . 1 1 3 . . . 4 . 2 1 Parts Field Recycled . | . . . . . . . . . . . . . . . Retrieved Matter . | . . . . . . . . . . . . . . . Parts Self-Destructed . | . . . . . . . . . . . . . . . Prevented . | . . . . . . . . . . . . . . . Kills | -11 -10 -9 -9 -9 -9 -7 -6 -6 -6 -5 -4 -3 -2 -2 ------- Run | Yrd Mat Mat Sto Gar Rec Fac Fac Low Low Fac Fac Res Res Tes Combat Hostiles Destroyed 235 | . 11 5 14 21 2 29 13 17 . 7 43 24 22 27 Guns 183 | . 11 5 14 21 2 9 9 17 . 3 37 24 19 12 Cannons 39 | . . . . . . 20 4 . . . 6 . 3 6 AOE 12 | . . . . . . . . . . 4 . . . 8 Classes Destroyed 20 | . 6 1 1 1 . 4 1 2 . 1 2 . . 1 Worker 24 | . . . . . . 3 2 . . 2 11 3 2 1 Builder 35 | . . . . . . 4 1 . . . 24 3 1 2 Tunneler 5 | . 1 . . . . 1 . . . . 2 1 . . Hauler 12 | . 1 . 4 . . 1 . . . 1 2 3 . . Recycler 35 | . 1 . 2 . 5 4 5 . . . 13 1 2 2 Minesweeper 1 | . . . . . . 1 . . . . . . . . Mechanic 2 | . . . . . . . . . . . 1 . . 1 Operator 2 | . . . . . . . . . . 1 . . . 1 Watcher 21 | . 3 . 2 . . 2 1 . . . 6 3 4 . Swarmer 40 | . 2 . . 10 . 2 2 4 . 4 6 3 3 4 Grunt 88 | . 9 2 5 1 . 13 5 2 . 2 16 10 8 15 Brawler 1 | . . . . . . . . 1 . . . . . . Duelist 5 | . . . 1 . . 1 . 2 . . 1 . . . Researcher 1 | . . . . . . . . . . . . . . 1 Sentry 39 | . . 3 8 7 2 6 1 2 . 1 4 2 3 . Specialist 3 | . . . . . . . . 3 . . . . . . Hunter 12 | . . . . . . 1 2 2 . . 2 . 2 3 Programmer 43 | . . . . 3 . 6 2 1 . . 13 8 5 5 Heavy 1 | . . . . . . . . . . . 1 . . . Behemoth 3 | . . . . . . . 1 . . . . 1 1 . Thug 1 | . . . . 1 . . . . . . . . . . Best Kill Streak 24 | . 6 3 7 7 6 5 5 11 . 8 24 19 11 6 Combat Bots Only 11 | . 5 3 7 7 2 3 3 11 . 5 7 8 9 6 Max Kills in Single Turn 5 | . 1 2 2 2 1 2 2 2 . 5 4 2 2 4 Gunslinging 1 | . . 1 1 1 . . . 1 . . 1 1 . 1 Exploded 3 | . . . . . . . . . . 3 . . . 3 Melee . | . . . . . . . . . . . . . . . Uniques/NPCs Destroyed . | . . . . . . . . . . . . . . . Combat | -11 -10 -9 -9 -9 -9 -7 -6 -6 -6 -5 -4 -3 -2 -2 -------- Run | Yrd Mat Mat Sto Gar Rec Fac Fac Low Low Fac Fac Res Res Tes Hostile Shots Fired 1417 | . 32 25 86 87 4 226 104 82 . 16 209 86 145 315 Missed 380 | . 12 6 23 21 1 64 30 28 . 5 62 25 27 76 Damage Taken 12847 | . 153 161 555 690 29 1453 992 514 . 182 1912 858 1859 3489 Core 1818 | . 44 32 80 170 . 348 230 52 . 46 106 70 186 454 Absorbed by Shields . | . . . . . . . . . . . . . . . Redirected to Shielding 52 | . 9 . . . . . . . . . 43 . . . Ignored by Resistances 7340 | . 94 101 346 417 16 778 508 322 . 105 1139 504 1088 1922 Regen/Repaired (Parts) 283 | . 26 . 146 . . . . . . . . 111 . . Core Remaining (%) 75 | 100 82 . . . 29 50 . . 66 95 90 94 . . Volleys Fired 628 | . 46 12 74 71 8 89 40 33 . 11 106 34 45 59 Largest 7 | . 2 2 2 2 2 3 4 4 . 4 4 6 7 7 Hottest 344 | . 40 40 65 88 88 161 185 165 . 154 164 180 259 344 Shots Fired 2101 | . 92 24 136 144 16 246 151 125 . 39 416 204 310 198 Gun 1723 | . 92 24 136 144 16 78 91 116 . 39 352 204 265 166 Cannon 378 | . . . . . . 168 60 9 . . 64 . 45 32 Launcher . | . . . . . . . . . . . . . . . Special . | . . . . . . . . . . . . . . . Kinetic 1897 | . 92 24 127 73 8 214 126 92 . 38 416 204 310 173 Thermal 204 | . . . 9 71 8 32 25 33 . 1 . . . 25 Explosive . | . . . . . . . . . . . . . . . Electromagnetic . | . . . . . . . . . . . . . . . Robot Hit Streak 90 | . 27 14 63 90 12 22 23 21 . 34 31 46 19 21 Robot Miss Streak 5 | . 3 1 1 1 . 5 4 2 . 1 3 3 3 4 Penetration Max 2 | . . . . . . . 1 . . . 2 1 1 1 Secondary Targets 30 | . 2 1 4 7 1 . . 4 . . 3 6 . 2 Max Gunslinging Chain 2 | . 1 1 1 1 1 . . 1 . . 1 1 . 2 Shots Hit Robots 1371 | . 69 19 111 72 12 180 96 88 . 28 289 145 162 100 Core Hits 797 | . 30 11 43 28 8 73 104 69 . 33 193 72 70 63 Critical Kills 27 | . . . . . . . . 1 . 1 7 5 9 4 Critical Parts Destroyed 44 | . . . . . . . 3 . . 1 15 5 9 11 Critical Strikes 90 | . . . . 2 . 9 4 3 . 2 24 11 18 17 Burn 7 | . . . . 2 . 2 1 2 . . . . . . Meltdown 1 | . . . . . . . . . . . . . . 1 Destroy 71 | . . . . . . . 3 1 . 2 22 11 18 14 Blast 11 | . . . . . . 7 . . . . 2 . . 2 Melee Attacks . | . . . . . . . . . . . . . . . Impact . | . . . . . . . . . . . . . . . Slashing . | . . . . . . . . . . . . . . . Piercing . | . . . . . . . . . . . . . . . Sneak Attacks . | . . . . . . . . . . . . . . . Combat Hostiles . | . . . . . . . . . . . . . . . Follow-up Attacks . | . . . . . . . . . . . . . . . Damage Inflicted 44664 | . 854 237 1487 1769 271 4662 2396 1808 . 1244 12475 5917 5058 6486 Guns 32787 | . 845 237 1486 1659 271 1311 1477 1688 . 690 10320 5917 4356 2530 Cannons 8995 | . . . . . . 3323 919 120 . . 1872 . 702 2059 Explosions 2719 | . . . . 110 . . . . . 554 159 . . 1896 Melee . | . . . . . . . . . . . . . . . Ramming 163 | . 9 . 1 . . 28 . . . . 124 . . 1 Kinetic 36477 | . 845 237 1435 555 71 3928 1963 1136 . 666 12192 5917 5058 2474 Thermal 7723 | . . . 51 1104 200 706 433 672 . 483 63 . . 4011 Explosive 206 | . . . . 110 . . . . . . 96 . . . Electromagnetic 95 | . . . . . . . . . . 95 . . . . Impact . | . . . . . . . . . . . . . . . Slashing . | . . . . . . . . . . . . . . . Piercing . | . . . . . . . . . . . . . . . Highest Corruption 8 | . . . 1 3 3 2 1 3 3 . 5 1 8 8 Average Corruption 2 | . . . 1 2 3 1 1 2 3 . 3 1 6 5 Corruption Purged 4 | . . . . . . . . . . . . . . 4 Corruption Blocked . | . . . . . . . . . . . . . . . Effects 163 | . . . 9 42 10 31 1 15 3 . 14 1 15 22 Message Errors 32 | . . . . 14 1 4 . 4 . . 1 1 2 5 Matter Fused 39 | . . . 2 7 2 8 1 5 1 . 5 . 2 6 Heat Flow Errors 23 | . . . 2 7 3 4 . 2 . . 2 . . 3 Energy Discharges 23 | . . . 2 3 2 3 . 3 . . 1 . 4 5 Parts Fused 1 | . . . . . . 1 . . . . . . . . Data Loss (minor) 19 | . . . . 6 2 5 . . 2 . 3 . 1 . Data Loss (major) 7 | . . . . 3 . 1 . . . . 1 . 1 1 Misfires 6 | . . . . 2 . 4 . . . . . . . . Alerts 5 | . . . 3 . . . . 1 . . . . 1 . Weapon Failures 8 | . . . . . . 1 . . . . 1 . 4 2 Overload Shots . | . . . . . . . . . . . . . . . Overflow Damage 1222 | . . . . 20 . 141 . . . 10 267 . 16 768 Projectiles 552 | . . . . . . 141 . . . . 123 . 16 272 Explosions 613 | . . . . 20 . . . . . 10 87 . . 496 Melee 57 | . . . . . . . . . . . 57 . . . Knockbacks 57 | . . . . . . 19 17 1 . . 11 . 4 5 Impact 1 | . . . . . . . . . . . 1 . . . Kinetic 55 | . . . . . . 19 17 1 . . 10 . 4 4 Secondary 1 | . . . . . . . . . . . . . . 1 Self-Inflicted Damage 359 | . . . . 91 . . . . . 39 44 . . 185 Shots 8 | . . . . 1 . . . . . 2 1 . . 4 Rammed . | . . . . . . . . . . . . . . . Targets Rammed 14 | . 1 . 1 . . 5 . . . . 6 . . 1 Kicked 14 | . 1 . 1 . . 5 . . . . 6 . . 1 Crushed . | . . . . . . . . . . . . . . . Highest Temperature 677 | . 12 8 270 395 219 677 585 521 . 24 216 224 199 618 Average Temperature 146 | . 5 3 33 91 81 174 192 253 . 12 48 67 116 219 Received Heat Transfer 3881 | . 141 90 471 261 18 828 280 114 . 63 457 162 582 414 Effects 152 | . . . . 1 . 59 33 26 . . . . . 33 Shutdowns 60 | . . . . 1 . 20 13 15 . . . . . 11 Energy Bleed 17 | . . . . . . 8 4 3 . . . . . 2 Interference 17 | . . . . . . 2 5 . . . . . . 10 Matter Decay 13 | . . . . . . 7 1 3 . . . . . 2 Short Circuit 14 | . . . . . . 6 3 2 . . . . . 3 Damage (minor) 9 | . . . . . . 7 1 1 . . . . . . Damage (major) 18 | . . . . . . 7 5 2 . . . . . 4 Damage (core) 4 | . . . . . . 2 1 . . . . . . 1 Siege Activations . | . . . . . . . . . . . . . . . Robots Corrupted 2 | . . . . . . . . . . . 2 . . . Combat Hostiles . | . . . . . . . . . . . . . . . Parts Fried 1 | . . . . . . . . . . . 1 . . . Impact Corruptions 2 | . . . . . . . . . . . 2 . . . Robots Melted 1 | . . . . . . . . . . . . . . 1 Combat Hostiles 1 | . . . . . . . . . . . . . . 1 Parts Melted 16 | . . . . 4 . . 1 2 . . . 3 . 6 Heat Transferred 7893 | . . . 74 1422 296 1110 666 1110 . 437 50 . . 2728 Parts Sabotaged . | . . . . . . . . . . . . . . . Parts Stolen . | . . . . . . . . . . . . . . . Parts Stripped . | . . . . . . . . . . . . . . . Power Chain Reactions . | . . . . . . . . . . . . . . . Alert | -11 -10 -9 -9 -9 -9 -7 -6 -6 -6 -5 -4 -3 -2 -2 ------- Run | Yrd Mat Mat Sto Gar Rec Fac Fac Low Low Fac Fac Res Res Tes Peak Influence 2059 | . 125 175 409 2059 760 547 158 . . 359 824 774 719 528 Initial 669 | . . . 52 12 669 340 26 . . 65 21 261 326 263 Average 309 | . 57 93 125 837 639 150 68 . . 121 208 501 515 306 Maximum Alert Level 5 | . . . 2 5 3 2 . . . 1 3 3 3 2 Low Security (%) 57 | 100 100 100 80 18 . 73 100 . . 93 64 . . 14 Level 1 14 | . . . 18 11 . 18 . . . 6 11 26 14 60 Level 2 16 | . . . 1 17 49 8 . . . . 23 53 82 25 Level 3 6 | . . . . 19 50 . . . . . 1 19 3 . Level 4 2 | . . . . 15 . . . . . . . . . . Level 5 3 | . . . . 17 . . . . . . . . . . High Security . | . . . . . . . . . . . . . . . Max Security . | . . . . . . . . . . . . . . . Squads Dispatched 59 | . 2 2 5 . . 14 4 . . 1 10 11 3 7 Investigation 23 | . 2 2 5 . . 6 2 . . . 2 2 1 1 Extermination 16 | . . . . . . 6 2 . . . 4 2 1 1 Reinforcement 14 | . . . . . . 2 . . . 1 4 2 . 5 Assault 1 | . . . . . . . . . . . . . 1 . Garrison 5 | . . . . . . . . . . . . 5 . . Intercept . | . . . . . . . . . . . . . . . Searches Triggered . | . . . . . . . . . . . . . . . Construction Impeded 6 | . . . . . . . . . . . 2 1 . 3 Haulers Reinforced 4 | . . . . . . 1 . . . 1 1 1 . . Active Scanning Responses . | . . . . . . . . . . . . . . . Cargo Convoy Interrupts . | . . . . . . . . . . . . . . . Stealth | -11 -10 -9 -9 -9 -9 -7 -6 -6 -6 -5 -4 -3 -2 -2 --------- Run | Yrd Mat Mat Sto Gar Rec Fac Fac Low Low Fac Fac Res Res Tes Distress Signals 14 | . . . 2 . . 4 . . . . 2 2 3 1 Communications Jammed . | . . . . . . . . . . . . . . . Distress Signals . | . . . . . . . . . . . . . . . Times Spotted 307 | . 18 7 21 30 2 47 16 17 . 5 57 27 25 35 Peak Tracking Total 9 | . 3 3 6 9 1 4 3 7 . 1 6 5 8 9 Tactical Retreats 6 | . . . 1 1 . 2 . 1 . . 1 . . . Traps | -11 -10 -9 -9 -9 -9 -7 -6 -6 -6 -5 -4 -3 -2 -2 ------- Run | Yrd Mat Mat Sto Gar Rec Fac Fac Low Low Fac Fac Res Res Tes Traps Triggered 16 | . . . 3 4 . 2 . . . 2 2 1 1 1 Indirectly . | . . . . . . . . . . . . . . . Trap Hack Attempts . | . . . . . . . . . . . . . . . Triggered . | . . . . . . . . . . . . . . . Disarmed 2 | . 2 . . . . . . . . . . . . . Reprogrammed . | . . . . . . . . . . . . . . . Reused . | . . . . . . . . . . . . . . . Traps Extracted . | . . . . . . . . . . . . . . . Installed . | . . . . . . . . . . . . . . . Triggered 1 | . . . . . . . . . 1 . . . . . Machines | -11 -10 -9 -9 -9 -9 -7 -6 -6 -6 -5 -4 -3 -2 -2 ---------- Run | Yrd Mat Mat Sto Gar Rec Fac Fac Low Low Fac Fac Res Res Tes Machines Disabled 37 | . . . 1 8 . 3 1 1 . 7 9 2 . 5 Max in Single Turn 4 | . . . 1 2 . 1 1 1 . 4 4 1 . 1 Garrison Access 1 | . . . . . . 1 . . . . . . . . Garrison Relay 6 | . . . . 6 . . . . . . . . . . Phase Generator 1 | . . . . 1 . . . . . . . . . . Machines Repaired . | . . . . . . . . . . . . . . . Machines Dismantled . | . . . . . . . . . . . . . . . Machines Sabotaged . | . . . . . . . . . . . . . . . Overloaded Fab Kills . | . . . . . . . . . . . . . . . Hacking | -11 -10 -9 -9 -9 -9 -7 -6 -6 -6 -5 -4 -3 -2 -2 --------- Run | Yrd Mat Mat Sto Gar Rec Fac Fac Low Low Fac Fac Res Res Tes Machines Accessed 50 | . 8 2 13 4 4 9 2 . . . 3 3 1 1 Terminals 38 | . 7 1 11 4 4 6 1 . . . 2 . 1 1 Fabricators 3 | . . . . . . 2 . . . . . 1 . . Repair Stations 4 | . 1 . 1 . . . 1 . . . . 1 . . Recycling Units . | . . . . . . . . . . . . . . . Scanalyzers 3 | . . 1 . . . . . . . . 1 1 . . Garrison Access 2 | . . . 1 . . 1 . . . . . . . . Total Hacks 169 | . 33 7 40 9 18 29 7 . . . 9 9 6 2 Successful 117 | . 24 6 27 5 15 20 4 . . . 6 5 5 . Failed 52 | . 9 1 13 4 3 9 3 . . . 3 4 1 2 Catastrophic 5 | . . . 1 . . 3 . . . . . . . 1 Database Lockouts . | . . . . . . . . . . . . . . . Manual . | . . . . . . . . . . . . . . . Terminals 132 | . 29 3 33 9 18 24 3 . . . 5 . 6 2 Fabricators 8 | . . . . . . 4 . . . . . 4 . . Repair Stations 15 | . 4 . 5 . . . 4 . . . . 2 . . Recycling Units . | . . . . . . . . . . . . . . . Scanalyzers 11 | . . 4 . . . . . . . . 4 3 . . Garrison Access 3 | . . . 2 . . 1 . . . . . . . . Terminal Hacks 92 | . 20 2 21 5 15 17 3 . . . 4 . 5 . Record 24 | . 8 . . . 8 1 2 . . . 2 . 3 . Part Schematic 3 | . . . 1 . . 2 . . . . . . . . Robot Schematic 1 | . . . 1 . . . . . . . . . . . Robot Analysis 1 | . . . 1 . . . . . . . . . . . Prototype ID Bank 6 | . 1 1 1 . 1 1 . . . . . . 1 . Open Door 5 | . . . 5 . . . . . . . . . . . Open DSF 1 | . . . . . . 1 . . . . . . . . Level Access Points 2 | . 1 1 . . . . . . . . . . . . Branch Access Points 3 | . . . 1 . 1 1 . . . . . . . . Emergency Access Points 5 | . . . 1 1 . 2 . . . . 1 . . . Terminal Index 1 | . . . . . 1 . . . . . . . . . Fabricator Index 1 | . . . . . 1 . . . . . . . . . Repair Station Index 1 | . 1 . . . . . . . . . . . . . Recycling Unit Index 1 | . 1 . . . . . . . . . . . . . Alert Level 2 | . 1 . . . . 1 . . . . . . . . Locate Traps 5 | . 2 . . . . 1 1 . . . . . 1 . Disarm Traps 1 | . 1 . . . . . . . . . . . . . Dispatch Records 2 | . . . . . 1 1 . . . . . . . . Maintenance Status 1 | . . . 1 . . . . . . . . . . . Security Status 2 | . . . 1 . . 1 . . . . . . . . Transport Status 1 | . . . . . 1 . . . . . . . . . Extermination Status 1 | . . . . . . 1 . . . . . . . . Assault Status 2 | . 1 . . . 1 . . . . . . . . . Hauler Manifests 5 | . . . 4 . . 1 . . . . . . . . Registered Components 2 | . . . 1 . . 1 . . . . . . . . Zone Layout 9 | . 3 . 3 . . 2 . . . . 1 . . . Garrison Registry 2 | . . . . 2 . . . . . . . . . . Security Stations 2 | . . . . 2 . . . . . . . . . . Fabricator Hacks 3 | . . . . . . 2 . . . . . 1 . . Load Schematic 1 | . . . . . . . . . . . . 1 . . Build 2 | . . . . . . 2 . . . . . . . . Repair Station Hacks 12 | . 4 . 5 . . . 1 . . . . 2 . . Scan Component 7 | . 2 . 3 . . . 1 . . . . 1 . . Repair 5 | . 2 . 2 . . . . . . . . 1 . . Recycling Unit Hacks . | . . . . . . . . . . . . . . . Scanalyzer 8 | . . 4 . . . . . . . . 2 2 . . Insert Component 4 | . . 2 . . . . . . . . 1 1 . . Analyze 4 | . . 2 . . . . . . . . 1 1 . . Garrison Access Hacks 2 | . . . 1 . . 1 . . . . . . . . Unlock Access 1 | . . . 1 . . . . . . . . . . . Seal Access 1 | . . . . . . 1 . . . . . . . . Unauthorized Hacks . | . . . . . . . . . . . . . . . Terminals . | . . . . . . . . . . . . . . . Fabricators . | . . . . . . . . . . . . . . . Repair Stations . | . . . . . . . . . . . . . . . Recycling Units . | . . . . . . . . . . . . . . . Scanalyzers . | . . . . . . . . . . . . . . . Garrison Access . | . . . . . . . . . . . . . . . Data Cores Recovered . | . . . . . . . . . . . . . . . Used . | . . . . . . . . . . . . . . . Hacking Detections 44 | . 7 2 10 4 4 7 2 . . . 3 3 1 1 Full Trace Events 36 | . 7 2 7 2 4 6 2 . . . 2 2 1 1 Feedback Events 1 | . . . . . . . . . . . . . . 1 Corruption 1 | . . . . . . . . . . . . . . 1 Feedback Blocked . | . . . . . . . . . . . . . . . Robot Schematics Acquired 4 | . . . 1 . . . . . . . . . . 3 Robots Built 1 | . . . . . . 1 . . . . . . . . Authchips . | . . . . . . . . . . . . . . . Time 58 | . . . . . . 58 . . . . . . . . Total Robot Build Rating 3 | . . . . . . 3 . . . . . . . . Part Schematics Acquired 10 | . . 2 1 . . 2 . . . . 1 1 . 3 Parts Built 2 | . . . . . . 2 . . . . . . . . Authchips . | . . . . . . . . . . . . . . . Time 42 | . . . . . . 42 . . . . . . . . Total Part Build Rating 8 | . . . . . . 8 . . . . . . . . Parts Repaired 5 | . 2 . 2 . . . . . . . . 1 . . Time 132 | . 52 . 58 . . . . . . . . 22 . . Parts Recycled . | . . . . . . . . . . . . . . . Recycled Matter . | . . . . . . . . . . . . . . . Retrieved Matter . | . . . . . . . . . . . . . . . Retrieved Components . | . . . . . . . . . . . . . . . Parts Scanalyzed 4 | . . 2 . . . . . . . . 1 1 . . Part Schematics Acquired 4 | . . 2 . . . . . . . . 1 1 . . Parts Damaged . | . . . . . . . . . . . . . . . Bothacking | -11 -10 -9 -9 -9 -9 -7 -6 -6 -6 -5 -4 -3 -2 -2 ------------ Run | Yrd Mat Mat Sto Gar Rec Fac Fac Low Low Fac Fac Res Res Tes Used RIF Installer 1 | . . . . 1 . . . . . . . . . . Robots Hacked . | . . . . . . . . . . . . . . . Non-combat . | . . . . . . . . . . . . . . . Combat . | . . . . . . . . . . . . . . . Robot Hacks Applied . | . . . . . . . . . . . . . . . Relay Couplers Released 26 | . . . . 26 . . . . . . . . . . Machine Destruction 26 | . . . . 26 . . . . . . . . . . Fabnet Peak Effective % . | . . . . . . . . . . . . . . . Robots Rewired 2 | . . . . 2 . . . . . . . . . . Allies Hacked . | . . . . . . . . . . . . . . . Hacks Repelled . | . . . . . . . . . . . . . . . Allies | -11 -10 -9 -9 -9 -9 -7 -6 -6 -6 -5 -4 -3 -2 -2 -------- Run | Yrd Mat Mat Sto Gar Rec Fac Fac Low Low Fac Fac Res Res Tes Total Allies 14 | . . . 10 3 . 1 . . . . . . . . Largest Group 10 | . . . 10 5 1 2 . . . . . . . . Highest-Rated Group 164 | . . . 88 149 149 164 . . . . . . . . Highest-Rated Ally 149 | . . . 16 149 149 149 . . . . . . . . Total Orders . | . . . . . . . . . . . . . . . Ally Attacks 120 | . . . 50 34 2 34 . . . . . . . . Total Damage 2995 | . . . 464 790 35 1706 . . . . . . . . Kills 38 | . . . 10 10 1 17 . . . . . . . . Allies Corrupted . | . . . . . . . . . . . . . . . Allies Melted . | . . . . . . . . . . . . . . . Intel | -11 -10 -9 -9 -9 -9 -7 -6 -6 -6 -5 -4 -3 -2 -2 ------- Run | Yrd Mat Mat Sto Gar Rec Fac Fac Low Low Fac Fac Res Res Tes Robot Analysis Total 1 | . . . 1 . . . . . . . . . . . Derelict Logs Recovered . | . . . . . . . . . . . . . . . Drone Launches . | . . . . . . . . . . . . . . . Drone Recoveries . | . . . . . . . . . . . . . . . Exploration | -11 -10 -9 -9 -9 -9 -7 -6 -6 -6 -5 -4 -3 -2 -2 ------------- Run | Yrd Mat Mat Sto Gar Rec Fac Fac Low Low Fac Fac Res Res Tes Turns Passed 18320 | 65 1607 368 1922 2919 628 3901 1214 994 90 457 1769 792 707 887 Spaces Moved 6315 | 55 621 141 662 878 192 1272 415 433 48 167 652 301 264 214 Core 22 | 22 . . . . . . . . . . . . . . Treads . | . . . . . . . . . . . . . . . Legs 6293 | 33 621 141 662 878 192 1272 415 433 48 167 652 301 264 214 Wheels . | . . . . . . . . . . . . . . . Hover . | . . . . . . . . . . . . . . . Flight . | . . . . . . . . . . . . . . . Fastest Speed 50 | 50 120 190 190 260 260 197 195 190 190 190 187 190 183 185 Average Speed 231 | 96 225 190 242 261 312 251 246 199 190 192 198 190 187 246 Slowest Speed 620 | 120 260 190 260 400 330 620 267 335 190 425 265 190 260 330 Overloaded Moves . | . . . . . . . . . . . . . . . Propulsion Burnouts . | . . . . . . . . . . . . . . . Robots Hopped . | . . . . . . . . . . . . . . . Cave-ins Triggered . | . . . . . . . . . . . . . . . Exploration Rate (%) 33 | 3 96 11 90 92 51 37 10 53 8 6 17 11 8 16 Regions Visited 14 Branch Regions 5 Pre-discovered Areas 1 | . . . 1 . . . . . . . . . . . Known Exits Taken 13 | 1 1 1 1 . 1 1 1 1 1 1 1 1 1 . Unknown Exits Taken . | . . . . . . . . . . . . . . . Scrap Searched . | . . . . . . . . . . . . . . . Spaces Dug . | . . . . . . . . . . . . . . . Terrain Destroyed 446 | . . . . 74 . 14 2 . . 31 140 50 22 113 Melee . | . . . . . . . . . . . . . . . Projectile 195 | . . . . . . 14 2 . . 3 86 49 22 19 AOE 250 | . . . . 74 . . . . . 28 54 . . 94 Terrain Rammed . | . . . . . . . . . . . . . . . Walls Destroyed . | . . . . . . . . . . . . . . . Machines Disabled . | . . . . . . . . . . . . . . . Actions | -11 -10 -9 -9 -9 -9 -7 -6 -6 -6 -5 -4 -3 -2 -2 --------- Run | Yrd Mat Mat Sto Gar Rec Fac Fac Low Low Fac Fac Res Res Tes Total 8572 | 64 738 217 836 1362 206 1778 508 484 47 272 859 424 339 438 Wait 1205 | . 49 54 73 383 . 339 32 . . 84 32 51 . 108 Move 6299 | 54 620 140 661 875 191 1271 414 432 47 166 651 300 263 214 Hop . | . . . . . . . . . . . . . . . Pick Up 68 | 4 9 4 4 . 1 7 4 4 . . 9 7 4 11 Fast Attach 50 | 6 3 . 2 . . 12 1 2 . 7 10 4 2 1 Attach 95 | . 2 4 2 3 1 12 8 4 . 3 14 3 15 24 Detach 14 | . 1 1 . 1 . 4 . . . . 1 1 . 5 Swap 81 | . 5 2 8 2 3 14 4 4 . 1 18 7 6 7 Drop 64 | . 2 . 1 . 2 20 5 5 . . 12 12 4 1 Fire 628 | . 46 12 74 71 8 89 40 33 . 11 106 34 45 59 Melee . | . . . . . . . . . . . . . . . Ram . | . . . . . . . . . . . . . . . Kick 14 | . 1 . 1 . . 5 . . . . 6 . . 1 Crush . | . . . . . . . . . . . . . . . Escape Stasis 45 | . . . 10 18 . 5 . . . . . 5 . 7 Rewire 9 | . . . . 9 . . . . . . . . . . Trap . | . . . . . . . . . . . . . . . Miscellaneous . | . . . . . . . . . . . . . . . Route ------- -11/Scrapyard -10/Materials (discovered 4 exits: *Mat x3 / *Min) -9/Materials (discovered 4 exits: Mat x3 / *Sto) -9/Storage (discovered 3 exits: *Mat / Rec / Gar) -9/Garrison (discovered 3 exits: *Rec x3) -9/Recycling -7/Factory (discovered 3 exits: *Fac / *Low x2) -6/Factory -6/Lower Caves -6/Lower Caves -5/Factory -4/Factory -3/Research -2/Research -2/Testing History --------- Turn | Location | Event 2 | -11/Scrapyard | Met Revision 17 7 | -11/Scrapyard | Identified exit to Materials 7 | -11/Scrapyard | Discovered exit to Materials (range 16) 66 | -11/Scrapyard | Entered Materials 66 | -10/Materials | Evolved 1 slot: Utility x1 311 | -10/Materials | Build established: Hacker-Mutant 537 | -10/Materials | Identified exit to Materials 967 | -10/Materials | Repaired Terrain Scanner 994 | -10/Materials | Repaired Aluminum Leg 1025 | -10/Materials | Identified exit to Mines 1025 | -10/Materials | Discovered exit to Mines (range 7) 1673 | -10/Materials | Entered another Materials area 1673 | -9/Materials | Evolved 2 slots: Power x1, Propulsion x1 1698 | -9/Materials | Identified exit to Materials 1819 | -9/Materials | Identified exit to Storage 1819 | -9/Materials | Discovered exit to Storage (range 9) 2041 | -9/Materials | Entered Storage 2081 | -9/Storage | Identified exit to Recycling 2197 | -9/Storage | Destroyed 7 combat bots 2406 | -9/Storage | Learned location of Armory (-3) 2634 | -9/Storage | Assisted by bots powering up and referring to "LRC-V3" 2943 | -9/Storage | Discovered exit to Materials (range 15) 2957 | -9/Storage | Build established: Commander-Mutant 3189 | -9/Storage | Repaired Imp. Ion Engine 3217 | -9/Storage | Repaired Assault Rifle 3960 | -9/Storage | Identified exit to Garrison 3963 | -9/Storage | Entered Garrison 3963 | -9/Garrison | Accompanied by 5 allies 4251 | -9/Garrison | Build established: Scavenger-Mutant 4473 | -9/Garrison | Triggered checkpoint 4505 | -9/Garrison | Triggered checkpoint 4529 | -9/Garrison | Destroyed 7 combat bots 4535 | -9/Garrison | Lost 4 allies 4655 | -9/Garrison | Triggered checkpoint 4719 | -9/Garrison | Learned Recycling security intel 4735 | -9/Garrison | Garrison Relay disabled 5127 | -9/Garrison | P-60 Hacker assimilated allied JQ-21F(g) 5257 | -9/Garrison | Installed Relay Interface Framework 5330 | -9/Garrison | Garrison Relay disabled 5439 | -9/Garrison | Build established: Hacker-Mutant 5601 | -9/Garrison | Core integrity fell below 50% 5636 | -9/Garrison | Garrison Relay disabled 5662 | -9/Garrison | Discovered exit to Recycling (range 18) 5662 | -9/Garrison | Discovered exit to Recycling (range 62) 5662 | -9/Garrison | Discovered exit to Recycling (range 76) 5760 | -9/Garrison | Rescued HV-R5K 5833 | -9/Garrison | Triggered checkpoint 5908 | -9/Garrison | Garrison Relay disabled 5970 | -9/Garrison | Garrison Relay disabled 5976 | -9/Garrison | Garrison Relay disabled 6245 | -9/Garrison | Phase Generator disabled 6357 | -9/Garrison | Learned Recycling security intel 6770 | -9/Garrison | Discovered exit to Recycling (range 18) 6770 | -9/Garrison | Discovered exit to Recycling (range 62) 6770 | -9/Garrison | Discovered exit to Recycling (range 76) 6882 | -9/Garrison | Entered Recycling 6882 | -9/Recycling | Accompanied by 1 ally (HV-R5K) 7339 | -9/Recycling | Build established: Scavenger-Mutant 7434 | -9/Recycling | Identified exit to Factory 7434 | -9/Recycling | Discovered exit to Factory (range 14) 7510 | -9/Recycling | Entered Factory 7510 | -7/Factory | Accompanied by 1 ally (HV-R5K) 7510 | -7/Factory | Evolved 4 slots: Power x1, Propulsion x1, Utility x1, Weapon x1 7821 | -7/Factory | Build established: Scavenger-Skirmisher 8107 | -7/Factory | Identified exit to Lower Caves 8107 | -7/Factory | Discovered exit to Lower Caves (range 7) 8695 | -7/Factory | Build established: Hacker-Skirmisher 9167 | -7/Factory | Fabricated M-14 Sweeper (x1) 9530 | -7/Factory | Build established: Scavenger-Skirmisher 9853 | -7/Factory | Build established: Hacker-Skirmisher 10404 | -7/Factory | Fabricated Imp. Deuterium Engine (x2) 11329 | -7/Factory | Identified exit to Factory 11329 | -7/Factory | Discovered exit to Factory (range 13) 11411 | -7/Factory | Entered another Factory area 11411 | -6/Factory | Evolved 2 slots: Utility x1, Weapon x1 11923 | -6/Factory | Spotted B-75 Beast 11979 | -6/Factory | Destroyed B-75 Beast 12315 | -6/Factory | Build established: Hacker-Gunner 12585 | -6/Factory | Identified exit to Lower Caves 12585 | -6/Factory | Discovered exit to Lower Caves (range 16) 12625 | -6/Factory | Entered Lower Caves 12702 | -6/Lower Caves | Acquired the password to a Derelict Tinkerer's latest research 12956 | -6/Lower Caves | Caught by Unaware searching for contraband prototypes 12973 | -6/Lower Caves | Caught by Unaware searching for contraband prototypes 13414 | -6/Lower Caves | Attracted the attention of an 0b10 checkpoint 13434 | -6/Lower Caves | Attracted the attention of an 0b10 outpost 13497 | -6/Lower Caves | Destroyed 11 combat bots 13592 | -6/Lower Caves | Identified exit to Lower Caves 13592 | -6/Lower Caves | Discovered exit to Lower Caves (range 14) 13619 | -6/Lower Caves | Entered another Lower Caves area 13642 | -6/Lower Caves | Identified exit to Factory 13642 | -6/Lower Caves | Discovered exit to Factory (range 12) 13709 | -6/Lower Caves | Entered Factory 13709 | -5/Factory | Evolved 2 slots: Utility x2 13750 | -5/Factory | Build established: Scavenger-Gunner 14139 | -5/Factory | Identified exit to Factory 14139 | -5/Factory | Discovered exit to Factory (range 15) 14166 | -5/Factory | Entered another Factory area 14166 | -4/Factory | Evolved 2 slots: Utility x2 15061 | -4/Factory | Lost 3 parts (1p2u) 15360 | -4/Factory | Destroyed 7 combat bots 15900 | -4/Factory | Identified exit to Research 15900 | -4/Factory | Discovered exit to Research (range 9) 15935 | -4/Factory | Entered Research 15935 | -3/Research | Evolved 2 slots: Weapon x2 16203 | -3/Research | Build established: Scavenger-Executioner 16237 | -3/Research | Garrison activated, responded to threat 16275 | -3/Research | Spotted B-86 Titan 16283 | -3/Research | Destroyed B-86 Titan 16460 | -3/Research | Repaired Imp. Carbon-fiber Leg 16545 | -3/Research | Garrison activated, responded to threat 16594 | -3/Research | Destroyed 8 combat bots 16700 | -3/Research | Identified exit to Research 16700 | -3/Research | Discovered exit to Research (range 8) 16727 | -3/Research | Entered another Research area 16727 | -2/Research | Evolved 2 slots: Power x1, Weapon x1 16970 | -2/Research | Lost 3 parts (3w) 17095 | -2/Research | Spotted B-90 Cyclops 17104 | -2/Research | Destroyed 9 combat bots 17104 | -2/Research | Destroyed B-90 Cyclops 17109 | -2/Research | Lost 7 parts (3p2n2w) 17227 | -2/Research | First assault squad dispatched 17309 | -2/Research | Identified exit to Testing 17309 | -2/Research | Discovered exit to Testing (range 16) 17434 | -2/Research | Entered Testing 17671 | -2/Testing | Lost 17 parts (3p3n5u6w) 17796 | -2/Testing | Found Prototype Energy Cannon 17800 | -2/Testing | Found Prototype Energy Cannon 17820 | -2/Testing | Identified Imp. Potential Cannon 17821 | -2/Testing | Identified Potential Cannon 18086 | -2/Testing | Found Prototype Energy Gun 18263 | -2/Testing | Spotted Alpha 7 18277 | -2/Testing | Scanned by Researcher 18296 | -2/Testing | Identified Warp Gun 18321 | -2/Testing | Self-destructed Last Messages --------------- 18317_ Held in stasis. 18317_ C-65 Expert is analyzing... 18317_ U-05 Engineer lays Concrete. 18317_ Penetrated by Slug. 18317_ M-36 Artificer fits Backup Propulsion VII on U-05 Engineer. 18318_ U-05 Engineer lays Concrete. 18318_ Slug penetrates Wall. 18318_ Adv. Heat Sink destroyed. 18319_ Lgt. Antimatter Reactor destroyed. 18319_ Penetrated by Slug. 18320_ U-05 Engineer lays Concrete. 18320_ Com. Particle Reactor destroyed. 18320_ Critical hit (Burn: +37). 18320_ Penetrated by Slug. 18320_ Slug penetrates Wall. 18320_ Warp Gun destroyed. 18321_ Held in stasis. 18321_ C-65 Expert is analyzing... 18321_ U-05 Engineer lays Concrete. Map ----- +----------------------------------------------------+ | | | | | | | | | | | | | | | | | | | | | | | | | | | | | | | | | ?????????????????????????????????????????????????? | | ?????????????????????????????????????????????????? | | ?????????????????????????????????????????????????? | | ??????????????????????????##?????????????????????? | | ???????????????????????### ###???????????????????? | | ??????????????????????##;;;;;##?#????????????????? | | ??????????????????????#;[]];;;#!#####????????????? | | ??????????????????????#; /*%/=#????????????? | | ??????????????????????#c 7 !*%#?????????????? | | ??????????????????????# @ /!!% #???????????? | | ??????????????????????#; ;;;;####???????????????? | | ??????????????????????#;;;;;;###########?????????? | | ???????????????#######;## ????????? | | ?#?????????????# # ????????? | | ???#???????????# # ????????? | | ???????????????# + ????????? | | #??????????#???# ""T"" # ########?????????? | | ??????????????## """"" # ????????????????? | | ##??????######?####### ## ???????????????? | | #??????# #"#???# % #??????????????? | | ##???##" " ##???# [ ;#??????????????? | | "#???#" "#???# mu%gg%h;!%= "?????????? | | "#???#""" #???# = [g[ ;"#!== ??????????? | | "#??##" #???# ######%! #??????????????? | | ### # #???# # = ""##??????????????? | | ###########+###### ##" ???????????????? | | = ### ######??????????????? | | = [ #?? #???????????????????? | | = % #??### #???????????????????? | | =[ #????? #???????????????????? | | ## ######+######+#####????? ???????????????????? | | # "## # #?????##??????????????????? | | ##[ # # # #?????????????????????????? | | ######## # #?????????????????????????? | +----------------------------------------------------+ Best States ------------- Heat Dissipation 134 Coolant Potential 80 Energy Generation 79 Energy Capacity 700 Matter Stores 950 Matter Capacity 950 Sight Range 16 Terrain Scan Range 20 Terrain Scan Density 85 Cloak Strength 2 Additional Mass Support 16 Resistance: KI 35 Resistance: TH 35 Resistance: EX 35 Resistance: EM 35 Resistance: I 35 Resistance: S 35 Resistance: P 35 Propulsion Shielding 33 Evasion (%) 55 Targeting Accuracy 12 Target Analysis 8 Armor Integrity Analysis 40 Kinecelleration 40 Offensive Hacking 20 Item Schematics ----------------- Aluminum Leg | -9/Materials | Scanalyzed Imp. Heat Sink | -9/Materials | Scanalyzed Field Laser | -9/Storage | Hacked Adv. Plasma Cannon | -7/Factory | Hacked Enh. Gauss Cannon | -7/Factory | Hacked KE Penetrator | -4/Factory | Scanalyzed Enh. Coil Gun | -3/Research | Scanalyzed Com. Particle Reactor | -2/Testing | Archive Thunder Hammer | -2/Testing | Archive Hvy. Wave Gun | -2/Testing | Archive Robot Schematics ------------------ M-13 Machinist | -9/Storage | Hacked A-02 Transporter | -2/Testing | Archive R-10 Processor | -2/Testing | Archive H-88 Terminator | -2/Testing | Archive Fabricated ------------ M-14 Sweeper | x1 | -7/Factory | Preloaded Imp. Deuterium Engine | x2 | -7/Factory | Preloaded Alien Tech Used ----------------- None Achievements -------------- None Challenges ------------ None Game ------ Seed TacticalActuatorRifle Manual? 0 Play Time 01:58:19 Cumulative 1824.7 hours Start 2024.11.16 @ 10:06:48 End 2024.11.16 @ 23:04:02 Sessions 5 Manual Loads 0 Difficulty Explorer Special Mode None Game No. 991 Rogue 62 Adventurer 0 Explorer 929 Win Type - Total 11 Types 11/0/0/0/0/0/0/0/0 Lore% 44 Gallery% 76 Achievement% 63 Wizard Run 0 Options --------- Layout 1 ASCII 0 Keyboard 0 Movement Mouse Keybinds 0 Fullscreen 1 Font 48/Smallcaps Map View 55x35 Zoom Use 0% Tactical HUD 1 Map Filters NONE Filters NONE Steam 1 RUN: b1bb9e03-c4df-4217-ae50-da2b0f78f8d6